fUSD/lending_fUSD_20250214
["ID","MTS","AMOUNT","RATE_DAILY","PERIOD"]
[353068232,1739541041984,-593.83203114,0.00013698,2]
[353068234,1739541041994,-157.02973,0.00013698,2]
[353068236,1739541042003,-500.0,0.00013698,2]
[353068238,1739541042012,-503.28632657,0.00013698,2]
[353068240,1739541042021,-1084.14,0.00013698,2]
[353068241,1739541042030,-500.0,0.00013698,2]
[353068243,1739541042039,-501.76834362,0.00013698,2]
[353068246,1739541042049,-500.0,0.00013698,2]
[353068247,1739541042059,-500.0,0.00013698,2]
[353068249,1739541042068,-500.0,0.00013698,2]
[353068251,1739541042077,-772.42,0.00013698,2]
[353068253,1739541042087,-500.0,0.00013698,2]
[353068256,1739541042096,-1003.31,0.00013698,2]
[353068258,1739541042105,-151.0,0.00013698,2]
[353068262,1739541042228,-151.0,0.00013698,2]
[353068264,1739541042246,-151.0,0.00013698,2]
[353068266,1739541042255,-151.0,0.00013698,2]
[353068268,1739541042265,-151.0,0.00013698,2]
[353068270,1739541042274,-151.0,0.00013698,2]
[353068272,1739541042283,-151.0,0.00013698,2]
[353068274,1739541042293,-856.43,0.00013698,2]
[353068276,1739541042302,-151.0,0.00013698,2]
[353068278,1739541042311,-500.0,0.00013698,2]
[353068280,1739541042320,-500.0,0.00013698,2]
[353068282,1739541042329,-500.0,0.00013698,2]
[353068284,1739541042338,-500.0,0.00013698,2]
[353068286,1739541042348,-707.54,0.00013698,2]
[353068288,1739541042358,-1419.094121,0.00013698,2]
[353068290,1739541042367,-504.60121381,0.00013698,2]
[353068292,1739541042378,-508.22575554,0.00013698,2]
[353068294,1739541042387,-510.43012567,0.00013698,2]
[353068296,1739541042396,-500.0,0.00013698,2]
[353068298,1739541042405,-500.0,0.00013698,2]
[353068300,1739541042414,-531.54,0.00013698,2]
[353068302,1739541042423,-989.43,0.00013698,2]
[353068304,1739541042432,-2045.811629,0.00013698,2]
[353068306,1739541042441,-553.33,0.00013698,2]
[353068308,1739541042450,-500.0,0.00013698,2]
[353068310,1739541042459,-151.0,0.00013698,2]
[353068312,1739541042469,-152.101692,0.00013698,2]
[353068314,1739541042477,-155.089979,0.00013698,2]
[353068316,1739541042487,-746.42,0.00013698,2]
[353068319,1739541042497,-500.0,0.00013698,2]
[353068321,1739541042506,-500.0,0.00013698,2]
[353068324,1739541042515,-956.31,0.00013698,2]
[353068327,1739541042524,-2670.87,0.00013698,2]
[353068330,1739541042535,-151.0,0.00013698,2]
[353068334,1739541042544,-151.659747,0.00013698,2]
[353068336,1739541042553,-500.0,0.00013698,2]
[353068339,1739541042562,-505.7330779,0.00013698,2]
[353068342,1739541042571,-151.0,0.00013698,2]
[353068346,1739541042580,-151.0,0.00013698,2]
[353068347,1739541042590,-151.0,0.00013698,2]
[353068349,1739541042599,-507.1406912,0.00013698,2]
[353068353,1739541042608,-151.0,0.00013698,2]
[353068357,1739541042617,-151.0,0.00013698,2]
[353068361,1739541042626,-500.0,0.00013698,2]
[353068364,1739541042636,-500.0,0.00013698,2]
[353068366,1739541042646,-1737.25,0.00013698,2]
[353068368,1739541042656,-501.98615083,0.00013698,2]
[353068370,1739541042666,-500.0,0.00013698,2]
[353068372,1739541042675,-2180.64,0.00013698,2]
[353068375,1739541042684,-500.0,0.00013698,2]
[353068378,1739541042693,-504.45336374,0.00013698,2]
[353068382,1739541042702,-505.29748627,0.00013698,2]
[353068384,1739541042711,-1284.18,0.00013698,2]
[353068386,1739541042720,-507.14758953,0.00013698,2]
[353068388,1739541042729,-543.73,0.00013698,2]
[353068390,1739541042738,-998.84,0.00013698,2]
[353068392,1739541042747,-505.67964254,0.00013698,2]
[353068394,1739541042756,-500.0,0.00013698,2]
[353068395,1739541042765,-625.84,0.00013698,2]
[353068397,1739541042774,-500.0,0.00013698,2]
[353068399,1739541042783,-500.0,0.00013698,2]
[353068401,1739541042792,-591.22,0.00013698,2]
[353068403,1739541042802,-500.0,0.00013698,2]
[353068405,1739541042811,-543.0989197,0.00013698,2]
[353068407,1739541042820,-500.0,0.00013698,2]
[353068409,1739541042829,-1891.27,0.00013698,2]
[353068411,1739541042838,-1158.12,0.00013698,2]
[353068413,1739541042847,-533.88961333,0.00013698,2]
[353068415,1739541042857,-2728.37,0.00013698,2]
[353068417,1739541042866,-500.0,0.00013698,2]
[353068419,1739541042879,-687.29,0.00013698,2]
[353068421,1739541042889,-500.0,0.00013698,2]
[353068423,1739541042898,-554.23,0.00013698,2]
[353068425,1739541042907,-151.0,0.00013698,2]
[353068427,1739541042918,-151.0,0.00013698,2]
[353068429,1739541042927,-151.0,0.00013698,2]
[353068431,1739541042938,-151.0,0.00013698,2]
[353068433,1739541042947,-500.0,0.00013698,2]
[353068435,1739541042958,-500.0,0.00013698,2]
[353068437,1739541042967,-151.0,0.00013698,2]
[353068439,1739541042977,-503.99665116,0.00013698,2]
[353068441,1739541042986,-500.0,0.00013698,2]
[353068443,1739541042996,-1329.29,0.00013698,2]
[353068445,1739541043005,-500.0,0.00013698,2]
[353068447,1739541043015,-500.0,0.00013698,2]
[353068449,1739541043024,-500.0,0.00013698,2]
[353068451,1739541043034,-884.0,0.00013698,2]
[353068453,1739541043043,-500.0,0.00013698,2]
[353068455,1739541043053,-500.0,0.00013698,2]
[353068457,1739541043062,-152.404426,0.00013698,2]
[353068459,1739541043071,-151.0,0.00013698,2]
[353068461,1739541043081,-151.0,0.00013698,2]
[353068463,1739541043090,-151.0,0.00013698,2]
[353068465,1739541043099,-151.0,0.00013698,2]
[353068467,1739541043109,-151.0,0.00013698,2]
[353068469,1739541043118,-151.0,0.00013698,2]
[353068471,1739541043127,-151.0,0.00013698,2]
[353068473,1739541043137,-151.0,0.00013698,2]
[353068475,1739541043146,-152.522394,0.00013698,2]
[353068477,1739541043155,-151.0,0.00013698,2]
[353068479,1739541043163,-1558.51,0.00013698,2]
[353068481,1739541043172,-500.0,0.00013698,2]
[353068483,1739541043185,-4380.55,0.00013698,2]
[353068485,1739541043194,-1623.79,0.00013698,2]
[353068487,1739541043203,-983.01,0.00013698,2]
[353068489,1739541043212,-268.66871402,0.00013698,2]
[353068491,1739541043222,-1252.72,0.00013698,2]
[353068493,1739541043232,-671.83,0.00013698,2]
[353068495,1739541043242,-1131.72,0.00013698,2]
[353068497,1739541043251,-151.0,0.00013698,2]
[353068499,1739541043259,-151.0,0.00013698,2]
[353068501,1739541043268,-151.0,0.00013698,2]
[353068503,1739541043278,-151.0,0.00013698,2]
[353068505,1739541043287,-151.0,0.00013698,2]
[353068507,1739541043297,-500.0,0.00013698,2]
[353068509,1739541043306,-1695.79,0.00013698,2]
[353068511,1739541043315,-500.0,0.00013698,2]
[353068513,1739541043324,-1504.98,0.00013698,2]
[353068515,1739541043333,-500.86716048,0.00013698,2]
[353068518,1739541043344,-1231.65,0.00013698,2]
[353068521,1739541043353,-500.0,0.00013698,2]
[353068523,1739541043362,-500.0,0.00013698,2]
[353068528,1739541043372,-1991.42,0.00013698,2]
[353068532,1739541043381,-500.0,0.00013698,2]
[353068534,1739541043390,-943.67,0.00013698,2]
[353068537,1739541043400,-538.81,0.00013698,2]
[353068541,1739541043410,-907.62,0.00013698,2]
[353068544,1739541043419,-502.93464732,0.00013698,2]
[353068545,1739541043429,-502.02620409,0.00013698,2]
[353068546,1739541043439,-500.0,0.00013698,2]
[353068548,1739541043448,-905.97,0.00013698,2]
[353068550,1739541043458,-500.0,0.00013698,2]
[353068552,1739541043467,-627.19,0.00013698,2]
[353068554,1739541043476,-1303.64,0.00013698,2]
[353068556,1739541043485,-1936.29,0.00013698,2]
[353068558,1739541043494,-571.8208771,0.00013698,2]
[353068560,1739541043503,-939.03,0.00013698,2]
[353068561,1739541043512,-707.07,0.00013698,2]
[353068564,1739541043522,-500.0,0.00013698,2]
[353068566,1739541043531,-500.0,0.00013698,2]
[353068568,1739541043540,-536.64,0.00013698,2]
[353068570,1739541043549,-1333.26,0.00013698,2]
[353068572,1739541043559,-747.44,0.00013698,2]
[353068576,1739541043569,-500.0,0.00013698,2]
[353068578,1739541043578,-1066.11,0.00013698,2]
[353068581,1739541043587,-1783.47,0.00013698,2]
[353068584,1739541043597,-500.60521246,0.00013698,2]
[353068587,1739541043606,-500.98260715,0.00013698,2]
[353068590,1739541043615,-578.97,0.00013698,2]
[353068592,1739541043624,-502.65595971,0.00013698,2]
[353068594,1739541043633,-500.0,0.00013698,2]
[353068596,1739541043642,-945.78,0.00013698,2]
[353068598,1739541043651,-500.0,0.00013698,2]
[353068600,1739541043660,-377.61760858,0.00013698,2]
[353068602,1739541043669,-500.0,0.00013698,2]
[353068604,1739541043678,-500.0,0.00013698,2]
[353068606,1739541043688,-500.0,0.00013698,2]
[353068608,1739541043698,-500.0,0.00013698,2]
[353068610,1739541043707,-500.0,0.00013698,2]
[353068612,1739541043717,-500.0,0.00013698,2]
[353068614,1739541043726,-501.11085051,0.00013698,2]
[353068616,1739541043735,-558.5,0.00013698,2]
[353068618,1739541043744,-844.43,0.00013698,2]
[353068620,1739541043754,-500.0,0.00013698,2]
[353068622,1739541043763,-500.0,0.00013698,2]
[353068624,1739541043771,-1988.79,0.00013698,2]
[353068626,1739541043780,-1988.79,0.00013698,2]
[353068628,1739541043789,-1988.79,0.00013698,2]
[353068630,1739541043798,-1988.79,0.00013698,2]
[353068632,1739541043808,-1988.79,0.00013698,2]
[353068634,1739541043817,-1988.79,0.00013698,2]
[353068635,1739541043826,-1988.79,0.00013698,2]
[353068636,1739541043835,-1988.79,0.00013698,2]
[353068638,1739541043844,-500.0,0.00013698,2]
[353068640,1739541043853,-1988.79,0.00013698,2]
[353068642,1739541043862,-1988.79,0.00013698,2]
[353068644,1739541043874,-1988.79,0.00013698,2]
[353068646,1739541043887,-500.0,0.00013698,2]
[353068648,1739541043897,-500.0,0.00013698,2]
[353068650,1739541043906,-500.0,0.00013698,2]
[353068652,1739541043917,-1311.29,0.00013698,2]
[353068654,1739541043926,-501.5296295,0.00013698,2]
[353068656,1739541043936,-1536.73,0.00013698,2]
[353068658,1739541043945,-500.0,0.00013698,2]
[353068660,1739541043956,-504.0792161,0.00013698,2]
[353068662,1739541043967,-1433.47,0.00013698,2]
[353068664,1739541043976,-500.0,0.00013698,2]
[353068666,1739541043986,-500.0,0.00013698,2]
[353068668,1739541043995,-1716.09,0.00013698,2]
[353068670,1739541044004,-500.62193102,0.00013698,2]
[353068672,1739541044013,-500.0,0.00013698,2]
[353068674,1739541044022,-500.0,0.00013698,2]
[353068676,1739541044031,-500.0,0.00013698,2]
[353068678,1739541044040,-800.74,0.00013698,2]
[353068679,1739541044050,-912.7,0.00013698,2]
[353068681,1739541044059,-902.77,0.00013698,2]
[353068683,1739541044068,-500.0,0.00013698,2]
[353068685,1739541044077,-151.0,0.00013698,2]
[353068687,1739541044086,-151.0,0.00013698,2]
[353068689,1739541044096,-151.0,0.00013698,2]
[353068691,1739541044105,-500.0,0.00013698,2]
[353068693,1739541044114,-500.00470628,0.00013698,2]
[353068694,1739541044124,-1059.1,0.00013698,2]
[353068695,1739541044134,-501.0336136,0.00013698,2]
[353068696,1739541044145,-500.0,0.00013698,2]
[353068697,1739541044155,-579.33,0.00013698,2]
[353068698,1739541044164,-501.16877124,0.00013698,2]
[353068699,1739541044174,-995.74,0.00013698,2]
[353068700,1739541044183,-151.435255,0.00013698,2]
[353068701,1739541044193,-500.0,0.00013698,2]
[353068702,1739541044202,-534.49375898,0.00013698,2]
[353068703,1739541044212,-1366.35,0.00013698,2]
[353068704,1739541044223,-500.0,0.00013698,2]
[353068705,1739541044232,-500.0,0.00013698,2]
[353068706,1739541044241,-500.0,0.00013698,2]
[353068707,1739541044251,-1013.55,0.00013698,2]
[353068708,1739541044262,-500.0,0.00013698,2]
[353068709,1739541044271,-500.0,0.00013698,2]
[353068710,1739541044280,-500.0,0.00013698,2]
[353068711,1739541044407,-759.59,0.00013698,2]
[353068712,1739541044416,-855.13,0.00013698,2]
[353068713,1739541044426,-1456.78,0.00013698,2]
[353068714,1739541044436,-151.0,0.00013698,2]
[353068716,1739541044445,-151.0,0.00013698,2]
[353068718,1739541044454,-151.0,0.00013698,2]
[353068720,1739541044463,-152.998305,0.00013698,2]
[353068722,1739541044472,-503.55,0.00013698,2]
[353068724,1739541044482,-690.14,0.00013698,2]
[353068726,1739541044491,-500.0,0.00013698,2]
[353068728,1739541044500,-500.0,0.00013698,2]
[353068730,1739541044509,-331.22516135,0.00013698,2]
[353068732,1739541044518,-1247.17,0.00013698,2]
[353068734,1739541044527,-786.73,0.00013698,2]
[353068736,1739541044536,-500.0,0.00013698,2]
[353068738,1739541044546,-500.0,0.00013698,2]
[353068740,1739541044555,-710.63,0.00013698,2]
[353068742,1739541044564,-1677.04,0.00013698,2]
[353068744,1739541044573,-152.119776,0.00013698,2]
[353068745,1739541044583,-500.0,0.00013698,2]
[353068747,1739541044592,-2141.69,0.00013698,2]
[353068749,1739541044601,-500.0,0.00013698,2]
[353068751,1739541044610,-843.63,0.00013698,2]
[353068753,1739541044619,-844.54,0.00013698,2]
[353068755,1739541044628,-500.0,0.00013698,2]
[353068757,1739541044638,-500.0,0.00013698,2]
[353068759,1739541044647,-500.0,0.00013698,2]
[353068761,1739541044656,-500.0,0.00013698,2]
[353068763,1739541044665,-153.946215,0.00013698,2]
[353068765,1739541044674,-500.0,0.00013698,2]
[353068767,1739541044683,-502.08851711,0.00013698,2]
[353068769,1739541044694,-1567.45,0.00013698,2]
[353068771,1739541044703,-804.94,0.00013698,2]
[353068773,1739541044713,-501.44502321,0.00013698,2]
[353068775,1739541044723,-1726.02,0.00013698,2]
[353068777,1739541044732,-365.55254987,0.00013698,2]
[353068780,1739541044741,-500.0,0.00013698,2]
[353068782,1739541044751,-500.0,0.00013698,2]
[353068784,1739541044761,-500.0,0.00013698,2]
[353068786,1739541044770,-500.0,0.00013698,2]
[353068787,1739541044779,-500.0,0.00013698,2]
[353068789,1739541044789,-500.0,0.00013698,2]
[353068791,1739541044798,-1002.34,0.00013698,2]
[353068793,1739541044808,-500.0,0.00013698,2]
[353068795,1739541044817,-500.0,0.00013698,2]
[353068798,1739541044826,-500.0,0.00013698,2]
[353068800,1739541044835,-500.0,0.00013698,2]
[353068802,1739541044845,-500.0,0.00013698,2]
[353068804,1739541044854,-500.0,0.00013698,2]
[353068806,1739541044863,-500.0,0.00013698,2]
[353068808,1739541044874,-500.0,0.00013698,2]
[353068809,1739541044883,-2063.91,0.00013698,2]
[353068812,1739541044894,-302.29254669,0.00013698,2]
[353068813,1739541044903,-819.07,0.00013698,2]
[353068815,1739541044914,-501.19897411,0.00013698,2]
[353068818,1739541044924,-693.23,0.00013698,2]
[353068819,1739541044933,-500.0,0.00013698,2]
[353068821,1739541044943,-504.04753341,0.00013698,2]
[353068823,1739541044955,-500.0,0.00013698,2]
[353068826,1739541044964,-255.88952049,0.00013698,2]
[353068828,1739541044973,-2172.14,0.00013698,2]
[353068830,1739541044982,-765.83,0.00013698,2]
[353068832,1739541044991,-500.0,0.00013698,2]
[353068834,1739541045001,-824.49,0.00013698,2]
[353068836,1739541045010,-500.0,0.00013698,2]
[353068837,1739541045019,-151.0,0.00013698,2]
[353068839,1739541045028,-151.0,0.00013698,2]
[353068841,1739541045038,-152.039783,0.00013698,2]
[353068844,1739541045050,-1600.09,0.00013698,2]
[353068845,1739541045060,-833.33,0.00013698,2]
[353068847,1739541045069,-1194.73,0.00013698,2]
[353068849,1739541045078,-227.89528758,0.00013698,2]
[353068851,1739541045087,-2296.84,0.00013698,2]
[353068853,1739541045096,-2828.33,0.00013698,2]
[353068855,1739541045105,-1034.96,0.00013698,2]
[353068857,1739541045115,-500.0,0.00013698,2]
[353068859,1739541045124,-1009.28,0.00013698,2]
[353068861,1739541045133,-1076.51,0.00013698,2]
[353068863,1739541045142,-1483.91,0.00013698,2]
[353068865,1739541045153,-616.15,0.00013698,2]
[353068867,1739541045162,-1216.35,0.00013698,2]
[353068869,1739541045171,-500.0,0.00013698,2]
[353068871,1739541045180,-741.21,0.00013698,2]
[353068873,1739541045190,-500.0,0.00013698,2]
[353068875,1739541045199,-910.94,0.00013698,2]
[353068877,1739541045208,-500.0,0.00013698,2]
[353068879,1739541045217,-500.0,0.00013698,2]
[353068881,1739541045226,-500.0,0.00013698,2]
[353068883,1739541045235,-500.0,0.00013698,2]
[353068885,1739541045244,-500.0,0.00013698,2]
[353068887,1739541045253,-500.0,0.00013698,2]
[353068889,1739541045264,-820.01,0.00013698,2]
[353068891,1739541045274,-500.0,0.00013698,2]
[353068893,1739541045283,-1755.63,0.00013698,2]
[353068895,1739541045292,-2394.68,0.00013698,2]
[353068897,1739541045301,-500.0,0.00013698,2]
[353068899,1739541045310,-500.0,0.00013698,2]
[353068901,1739541045319,-501.5769222,0.00013698,2]
[353068903,1739541045328,-500.0,0.00013698,2]
[353068906,1739541045337,-591.8733026,0.00013698,2]
[353068908,1739541045347,-787.86,0.00013698,2]
[353068910,1739541045356,-1193.37,0.00013698,2]
[353068911,1739541045365,-278.93305894,0.00013698,2]
[353068914,1739541045374,-500.0,0.00013698,2]
[353068915,1739541045383,-1662.21,0.00013698,2]
[353068917,1739541045393,-512.76381802,0.00013698,2]
[353068919,1739541045402,-560.65,0.00013698,2]
[353068921,1739541045411,-501.52702874,0.00013698,2]
[353068923,1739541045421,-331.212938,0.00013698,2]
[353068925,1739541045430,-331.212938,0.00013698,2]
[353068927,1739541045440,-331.212938,0.00013698,2]
[353068929,1739541045449,-331.212938,0.00013698,2]
[353068931,1739541045459,-331.212938,0.00013698,2]
[353068933,1739541045468,-500.0,0.00013698,2]
[353068935,1739541045477,-912.96,0.00013698,2]
[353068937,1739541045486,-151.0,0.00013698,2]
[353068939,1739541045495,-151.0,0.00013698,2]
[353068942,1739541045504,-151.0,0.00013698,2]
[353068944,1739541045513,-151.0,0.00013698,2]
[353068946,1739541045523,-500.0,0.00013698,2]
[353068948,1739541045532,-151.0,0.00013698,2]
[353068950,1739541045541,-2008.79,0.00013698,2]
[353068952,1739541045550,-331.212938,0.00013698,2]
[353068955,1739541045559,-331.212938,0.00013698,2]
[353068957,1739541045568,-331.212938,0.00013698,2]
[353068959,1739541045577,-331.212938,0.00013698,2]
[353068961,1739541045587,-331.212938,0.00013698,2]
[353068963,1739541045596,-500.0,0.00013698,2]
[353068965,1739541045605,-1625.18,0.00013698,2]
[353068967,1739541045614,-151.0,0.00013698,2]
[353068969,1739541045623,-500.0,0.00013698,2]
[353068971,1739541045632,-184.378994,0.00013698,2]
[353068973,1739541045641,-500.0,0.00013698,2]
[353068975,1739541045650,-601.12,0.00013698,2]
[353068978,1739541045659,-854.32,0.00013698,2]
[353068979,1739541045668,-500.0,0.00013698,2]
[353068981,1739541045677,-616.47,0.00013698,2]
[353068984,1739541045687,-1098.36,0.00013698,2]
[353068986,1739541045696,-1246.91,0.00013698,2]
[353068988,1739541045705,-504.15651145,0.00013698,2]
[353068990,1739541045714,-500.0,0.00013698,2]
[353068991,1739541045723,-504.39624553,0.00013698,2]
[353068992,1739541045733,-3037.42,0.00013698,2]
[353068993,1739541045742,-500.0,0.00013698,2]
[353068994,1739541045751,-565.97,0.00013698,2]
[353068995,1739541045761,-501.20127316,0.00013698,2]
[353068996,1739541045770,-1689.9,0.00013698,2]
[353068997,1739541045780,-500.0,0.00013698,2]
[353068998,1739541045790,-2096.24,0.00013698,2]
[353068999,1739541045799,-825.65,0.00013698,2]
[353069000,1739541045809,-1881.1,0.00013698,2]
[353069001,1739541045818,-500.0,0.00013698,2]
[353069002,1739541045828,-895.37,0.00013698,2]
[353069003,1739541045837,-624.15,0.00013698,2]
[353069004,1739541045847,-509.63,0.00013698,2]
[353069005,1739541045856,-500.0,0.00013698,2]
[353069007,1739541045866,-513.05643875,0.00013698,2]
[353069009,1739541045878,-1078.25,0.00013698,2]
[353069011,1739541045887,-500.0,0.00013698,2]
[353069013,1739541045896,-500.0,0.00013698,2]
[353069015,1739541045905,-500.0,0.00013698,2]
[353069017,1739541045914,-151.0,0.00013698,2]
[353069018,1739541045925,-668.67,0.00013698,2]
[353069019,1739541045935,-151.0,0.00013698,2]
[353069020,1739541045944,-151.0,0.00013698,2]
[353069021,1739541045957,-151.0,0.00013698,2]
[353069022,1739541045966,-240.707098,0.00013698,2]
[353069023,1739541045975,-507.40338252,0.00013698,2]
[353069024,1739541045984,-500.0,0.00013698,2]
[353069025,1739541045993,-500.0,0.00013698,2]
[353069026,1739541046002,-870.64,0.00013698,2]
[353069027,1739541046012,-721.42,0.00013698,2]
[353069028,1739541046021,-500.0,0.00013698,2]
[353069029,1739541046030,-2723.7,0.00013698,2]
[353069030,1739541046039,-3026.52,0.00013698,2]
[353069031,1739541046048,-500.0,0.00013698,2]
[353069032,1739541046058,-1632.89,0.00013698,2]
[353069033,1739541046067,-500.0,0.00013698,2]
[353069034,1739541046077,-569.49,0.00013698,2]
[353069035,1739541046086,-403.564355,0.00013698,2]
[353069036,1739541046096,-383.42787137,0.00013698,2]
[353069037,1739541046105,-403.564355,0.00013698,2]
[353069038,1739541046115,-403.564355,0.00013698,2]
[353069039,1739541046124,-403.564355,0.00013698,2]
[353069040,1739541046134,-403.564355,0.00013698,2]
[353069043,1739541046143,-500.0,0.00013698,2]
[353069045,1739541046153,-683.39,0.00013698,2]
[353069047,1739541046162,-272.706242,0.00013698,2]
[353069048,1739541046171,-272.706242,0.00013698,2]
[353069049,1739541046181,-272.706242,0.00013698,2]
[353069050,1739541046191,-403.564355,0.00013698,2]
[353069051,1739541046201,-1217.51,0.00013698,2]
[353069052,1739541046210,-4131.44,0.00013698,2]
[353069053,1739541046219,-507.52556433,0.00013698,2]
[353069054,1739541046228,-272.706242,0.00013698,2]
[353069055,1739541046237,-272.706242,0.00013698,2]
[353069056,1739541046246,-556.57,0.00013698,2]
[353069057,1739541046255,-403.564355,0.00013698,2]
[353069058,1739541046265,-403.564355,0.00013698,2]
[353069059,1739541046274,-500.0,0.00013698,2]
[353069060,1739541046283,-186.87840812,0.00013698,2]
[353069061,1739541046404,-403.564355,0.00013698,2]
[353069062,1739541046413,-403.564355,0.00013698,2]
[353069063,1739541046423,-496.57369909,0.00013698,2]
[353069064,1739541046432,-272.706242,0.00013698,2]
[353069065,1739541046442,-667.8,0.00013698,2]
[353069066,1739541046451,-272.706242,0.00013698,2]
[353069067,1739541046461,-272.706242,0.00013698,2]
[353069068,1739541046470,-500.0,0.00013698,2]
[353069069,1739541046479,-272.706242,0.00013698,2]
[353069070,1739541046488,-500.0,0.00013698,2]
[353069071,1739541046497,-272.706242,0.00013698,2]
[353069072,1739541046507,-500.0,0.00013698,2]
[353069073,1739541046516,-500.0,0.00013698,2]
[353069074,1739541046526,-2002.18,0.00013698,2]
[353069075,1739541046535,-503.66824186,0.00013698,2]
[353069076,1739541046544,-500.0,0.00013698,2]
[353069077,1739541046557,-500.0,0.00013698,2]
[353069078,1739541046566,-500.0,0.00013698,2]
[353069079,1739541046575,-500.0,0.00013698,2]
[353069080,1739541046584,-843.12,0.00013698,2]
[353069081,1739541046593,-500.0,0.00013698,2]
[353069082,1739541046602,-500.0,0.00013698,2]
[353069083,1739541046612,-500.0,0.00013698,2]
[353069084,1739541046621,-501.10231997,0.00013698,2]
[353069085,1739541046630,-1375.01,0.00013698,2]
[353069086,1739541046639,-500.0,0.00013698,2]
[353069087,1739541046648,-2120.04,0.00013698,2]
[353069088,1739541046657,-500.0,0.00013698,2]
[353069089,1739541046667,-2297.01,0.00013698,2]
[353069090,1739541046675,-500.0,0.00013698,2]
[353069091,1739541046685,-3339.66,0.00013698,2]
[353069092,1739541046695,-585.91,0.00013698,2]
[353069093,1739541046704,-505.78,0.00013698,2]
[353069094,1739541046713,-2373.06,0.00013698,2]
[353069095,1739541046722,-500.0,0.00013698,2]
[353069096,1739541046732,-1293.12,0.00013698,2]
[353069097,1739541046741,-500.0,0.00013698,2]
[353069098,1739541046751,-551.64,0.00013698,2]
[353069099,1739541046760,-1841.32,0.00013698,2]
[353069100,1739541046769,-500.0,0.00013698,2]
[353069101,1739541046779,-564.5402565,0.00013698,2]
[353069102,1739541046788,-500.0,0.00013698,2]
[353069103,1739541046798,-2964.61,0.00013698,2]
[353069104,1739541046807,-500.0,0.00013698,2]
[353069105,1739541046817,-520.43,0.00013698,2]
[353069106,1739541046827,-917.43,0.00013698,2]
[353069107,1739541046837,-501.12792587,0.00013698,2]
[353069108,1739541046846,-2884.54,0.00013698,2]
[353069109,1739541046856,-976.28,0.00013698,2]
[353069110,1739541046867,-504.62287946,0.00013698,2]
[353069111,1739541046879,-501.30233975,0.00013698,2]
[353069112,1739541046889,-1572.0,0.00013698,2]
[353069113,1739541046899,-1995.21,0.00013698,2]
[353069114,1739541046908,-1225.75,0.00013698,2]
[353069115,1739541046917,-500.0,0.00013698,2]
[353069116,1739541046928,-500.0,0.00013698,2]
[353069117,1739541046938,-2188.13,0.00013698,2]
[353069118,1739541046947,-1203.89,0.00013698,2]
[353069119,1739541046957,-4274.46,0.00013698,2]
[353069120,1739541046967,-504.33430324,0.00013698,2]
[353069121,1739541046976,-557.83,0.00013698,2]
[353069122,1739541046986,-815.32,0.00013698,2]
[353069123,1739541046995,-915.42,0.00013698,2]
[353069124,1739541047005,-500.0,0.00013698,2]
[353069125,1739541047015,-1672.19,0.00013698,2]
[353069126,1739541047025,-500.0,0.00013698,2]
[353069127,1739541047035,-501.01808699,0.00013698,2]